[Event "Titled Tuesday Blitz April 25 Early 2023"]
[White "Fierz, Martin"]
[Black "Omariev, Maksim"]
[WhiteFideId "1302132"]
[BlackFideId "4193423"]
[WhiteElo "2295"]
[BlackElo "2414"]
[Result "0-1"]
[Round "07"]
[TimeControl "180+2"]
[Date "2023.04.25"]
[WhiteClock "0:00:14"]
[BlackClock "0:00:46"]

1. e4 {[%clk 0:02:33]}  h5 {[%clk 0:02:58]} 2. d4 {[%clk 0:02:32]}  h4 {[%clk 0:02:59]} 3. Nc3 {[%clk 0:02:31]}  d6 {[%clk 0:02:59]} 4. Bc4 {[%clk 0:02:28]}  h3 {[%clk 0:02:59]} 5. Nxh3 {[%clk 0:02:25]}  Bxh3 {[%clk 0:02:59]} 6. gxh3 {[%clk 0:02:25]}  Nc6 {[%clk 0:02:57]} 7. Be3 {[%clk 0:02:20]}  Qd7 {[%clk 0:02:55]} 8. Qf3 {[%clk 0:02:06]}  Nf6 {[%clk 0:02:47]} 9. Nd5 {[%clk 0:01:56]}  O-O-O {[%clk 0:02:29]} 10. Nxf6 {[%clk 0:01:48]}  exf6 {[%clk 0:02:30]} 11. O-O-O {[%clk 0:01:33]}  Rxh3 {[%clk 0:02:29]} 12. Qg2 {[%clk 0:01:31]}  Kb8 {[%clk 0:02:27]} 13. Bxf7 {[%clk 0:01:30]}  Rxe3 {[%clk 0:02:25]} 14. fxe3 {[%clk 0:01:29]}  Qxf7 {[%clk 0:02:25]} 15. Kb1 {[%clk 0:01:24]}  Re8 {[%clk 0:02:12]} 16. h4 {[%clk 0:01:14]}  Qe7 {[%clk 0:01:56]} 17. e5 {[%clk 0:01:13]}  dxe5 {[%clk 0:01:47]} 18. d5 {[%clk 0:01:13]}  Nd8 {[%clk 0:01:44]} 19. h5 {[%clk 0:01:13]}  Nf7 {[%clk 0:01:44]} 20. c4 {[%clk 0:01:06]}  Rd8 {[%clk 0:01:43]} 21. e4 {[%clk 0:01:03]}  Qb4 {[%clk 0:01:39]} 22. Rc1 {[%clk 0:01:02]}  Ng5 {[%clk 0:01:36]} 23. a3 {[%clk 0:00:55]}  Qb6 {[%clk 0:01:33]} 24. Qe2 {[%clk 0:00:48]}  Bxa3 {[%clk 0:01:29]} 25. h6 {[%clk 0:00:48]}  gxh6 {[%clk 0:01:27]} 26. Rxh6 {[%clk 0:00:48]}  Bc5 {[%clk 0:01:26]} 27. Rf1 {[%clk 0:00:45]}  Rf8 {[%clk 0:01:18]} 28. Kc2 {[%clk 0:00:28]}  a5 {[%clk 0:01:18]} 29. Qh2 {[%clk 0:00:20]}  a4 {[%clk 0:01:14]} 30. Rh8 {[%clk 0:00:20]}  Nxe4 {[%clk 0:00:51]} 31. Rxf8+ {[%clk 0:00:19]}  Bxf8 {[%clk 0:00:52]} 32. Qh8 {[%clk 0:00:17]}  Qb3+ {[%clk 0:00:52]} 33. Kb1 {[%clk 0:00:14]}  Nd2+ {[%clk 0:00:46]} 0-1


[Site "https://www.chess.com"]

[Event "Titled Tuesday Blitz April 25 Early 2023"]
[White "Harriott, Tyrell"]
[Black "Barwinska, Ewa"]
[WhiteFideId "2086484"]
[BlackFideId "21833761"]
[WhiteElo "2107"]
[BlackElo "1908"]
[Result "1-0"]
[Round "07"]
[TimeControl "180+2"]
[Date "2023.04.25"]
[WhiteClock "0:00:20"]
[BlackClock "0:00:01"]

1. d4 {[%clk 0:02:59]}  Nf6 {[%clk 0:02:51]} 2. e3 {[%clk 0:02:58]}  c5 {[%clk 0:02:46]} 3. c3 {[%clk 0:02:51]}  d5 {[%clk 0:02:43]} 4. Bd3 {[%clk 0:02:47]}  Nc6 {[%clk 0:02:35]} 5. f4 {[%clk 0:02:46]}  e6 {[%clk 0:02:30]} 6. Nf3 {[%clk 0:02:46]}  Be7 {[%clk 0:02:25]} 7. Nbd2 {[%clk 0:02:40]}  O-O {[%clk 0:02:15]} 8. O-O {[%clk 0:02:39]}  c4 {[%clk 0:02:14]} 9. Bc2 {[%clk 0:02:38]}  b5 {[%clk 0:02:15]} 10. a3 {[%clk 0:02:38]}  Ng4 {[%clk 0:02:14]} 11. Qe2 {[%clk 0:02:28]}  f5 {[%clk 0:02:14]} 12. Ne5 {[%clk 0:02:21]}  Ncxe5 {[%clk 0:02:07]} 13. dxe5 {[%clk 0:02:18]}  Bc5 {[%clk 0:02:06]} 14. Nf3 {[%clk 0:02:18]}  Qb6 {[%clk 0:01:55]} 15. Nd4 {[%clk 0:02:14]}  Bxd4 {[%clk 0:01:55]} 16. exd4 {[%clk 0:02:14]}  a5 {[%clk 0:01:53]} 17. Bd2 {[%clk 0:02:11]}  Bd7 {[%clk 0:01:48]} 18. Kh1 {[%clk 0:02:06]}  b4 {[%clk 0:01:46]} 19. axb4 {[%clk 0:02:04]}  axb4 {[%clk 0:01:47]} 20. Rxa8 {[%clk 0:02:03]}  Rxa8 {[%clk 0:01:48]} 21. h3 {[%clk 0:01:52]}  Nh6 {[%clk 0:01:47]} 22. cxb4 {[%clk 0:01:29]}  Qxd4 {[%clk 0:01:33]} 23. Bc3 {[%clk 0:01:28]}  Qb6 {[%clk 0:01:29]} 24. Qd2 {[%clk 0:01:28]}  Nf7 {[%clk 0:01:16]} 25. Bd4 {[%clk 0:01:26]}  Qb7 {[%clk 0:01:11]} 26. g4 {[%clk 0:01:13]}  fxg4 {[%clk 0:01:03]} 27. hxg4 {[%clk 0:01:13]}  Nh6 {[%clk 0:01:03]} 28. f5 {[%clk 0:00:50]}  exf5 {[%clk 0:00:54]} 29. gxf5 {[%clk 0:00:50]}  Rf8 {[%clk 0:00:50]} 30. f6 {[%clk 0:00:49]}  Bh3 {[%clk 0:00:40]} 31. Rf3 {[%clk 0:00:45]}  Bg4 {[%clk 0:00:37]} 32. Rg3 {[%clk 0:00:44]}  Qd7 {[%clk 0:00:33]} 33. Qg5 {[%clk 0:00:43]}  Kh8 {[%clk 0:00:14]} 34. b5 {[%clk 0:00:37]}  Rg8 {[%clk 0:00:04]} 35. b6 {[%clk 0:00:24]}  Nf7 {[%clk 0:00:02]} 36. Qxg4 {[%clk 0:00:21]}  Qxg4 {[%clk 0:00:01]} 37. Rxg4 {[%clk 0:00:22]}  Nh6 {[%clk 0:00:01]} 38. Rg3 {[%clk 0:00:20]}  g6 {[%clk 0:00:01]} 39. e6 {[%clk 0:00:20]} 1-0


[Site "https://www.chess.com"]

[Event "Titled Tuesday Blitz April 25 Early 2023"]
[White "Koutsin, Sergey"]
[Black "Bekkedahl, Zachary"]
[WhiteFideId "14101483"]
[BlackFideId "2069156"]
[WhiteElo "2381"]
[BlackElo "1943"]
[Result "1-0"]
[Round "07"]
[TimeControl "180+2"]
[Date "2023.04.25"]
[WhiteClock "0:00:20"]
[BlackClock "0:01:02"]

1. d4 {[%clk 0:03:00]}  Nf6 {[%clk 0:02:56]} 2. c4 {[%clk 0:03:01]}  g6 {[%clk 0:02:56]} 3. Nc3 {[%clk 0:03:01]}  Bg7 {[%clk 0:02:57]} 4. e4 {[%clk 0:03:02]}  d6 {[%clk 0:02:57]} 5. Nf3 {[%clk 0:03:02]}  O-O {[%clk 0:02:56]} 6. Be2 {[%clk 0:03:03]}  e5 {[%clk 0:02:55]} 7. O-O {[%clk 0:03:03]}  exd4 {[%clk 0:02:55]} 8. Nxd4 {[%clk 0:03:03]}  Nc6 {[%clk 0:02:55]} 9. Be3 {[%clk 0:02:52]}  Re8 {[%clk 0:02:55]} 10. f3 {[%clk 0:02:53]}  Nd7 {[%clk 0:02:52]} 11. Nxc6 {[%clk 0:02:40]}  bxc6 {[%clk 0:02:52]} 12. Qd2 {[%clk 0:02:41]}  Ne5 {[%clk 0:02:48]} 13. c5 {[%clk 0:02:17]}  dxc5 {[%clk 0:02:45]} 14. Qxd8 {[%clk 0:02:05]}  Rxd8 {[%clk 0:02:46]} 15. Bxc5 {[%clk 0:02:05]}  Rd2 {[%clk 0:02:44]} 16. Rfd1 {[%clk 0:01:57]}  Rxd1+ {[%clk 0:02:37]} 17. Rxd1 {[%clk 0:01:58]}  Be6 {[%clk 0:02:37]} 18. f4 {[%clk 0:01:25]}  Nd7 {[%clk 0:02:33]} 19. Bd4 {[%clk 0:01:20]}  Bxd4+ {[%clk 0:02:21]} 20. Rxd4 {[%clk 0:01:19]}  Rb8 {[%clk 0:02:20]} 21. b3 {[%clk 0:01:18]}  c5 {[%clk 0:02:19]} 22. Ra4 {[%clk 0:01:13]}  Rb7 {[%clk 0:01:56]} 23. Ra5 {[%clk 0:01:06]}  f6 {[%clk 0:01:46]} 24. Bb5 {[%clk 0:00:50]}  Nb8 {[%clk 0:01:36]} 25. Na4 {[%clk 0:00:29]}  c6 {[%clk 0:01:19]} 26. Nxc5 {[%clk 0:00:25]}  Re7 {[%clk 0:01:04]} 27. Nxe6 {[%clk 0:00:22]}  Rxe6 {[%clk 0:01:03]} 28. Bc4 {[%clk 0:00:22]}  Kf7 {[%clk 0:01:02]} 29. Rxa7+ {[%clk 0:00:20]} 1-0


[Site "https://www.chess.com"]

[Event "Titled Tuesday Blitz April 25 Early 2023"]
[White "Gatterer, Florian"]
[Black "Tsyhanchuk, Stanislav"]
[WhiteFideId "811688"]
[BlackFideId "13505130"]
[WhiteElo "2221"]
[BlackElo "2173"]
[Result "1-0"]
[Round "07"]
[TimeControl "180+2"]
[Date "2023.04.25"]
[WhiteClock "0:00:20"]
[BlackClock "0:00:08"]

1. b3 {[%clk 0:03:00]}  c5 {[%clk 0:02:56]} 2. c4 {[%clk 0:02:58]}  Nc6 {[%clk 0:02:56]} 3. Bb2 {[%clk 0:02:56]}  e6 {[%clk 0:02:56]} 4. Nf3 {[%clk 0:02:54]}  d5 {[%clk 0:02:56]} 5. cxd5 {[%clk 0:02:54]}  exd5 {[%clk 0:02:56]} 6. d4 {[%clk 0:02:52]}  Nf6 {[%clk 0:02:54]} 7. Nc3 {[%clk 0:02:51]}  b6 {[%clk 0:02:52]} 8. e3 {[%clk 0:02:51]}  Bb7 {[%clk 0:02:48]} 9. Bb5 {[%clk 0:02:48]}  Be7 {[%clk 0:02:45]} 10. Ne5 {[%clk 0:02:45]}  Rc8 {[%clk 0:02:40]} 11. O-O {[%clk 0:02:35]}  O-O {[%clk 0:02:39]} 12. Bxc6 {[%clk 0:02:35]}  Bxc6 {[%clk 0:02:40]} 13. Nxc6 {[%clk 0:02:35]}  Rxc6 {[%clk 0:02:41]} 14. dxc5 {[%clk 0:02:35]}  bxc5 {[%clk 0:02:39]} 15. Rc1 {[%clk 0:02:32]}  Qd7 {[%clk 0:02:21]} 16. Qf3 {[%clk 0:02:31]}  Rd8 {[%clk 0:02:20]} 17. Rfd1 {[%clk 0:02:30]}  Re6 {[%clk 0:02:08]} 18. g3 {[%clk 0:02:26]}  h5 {[%clk 0:02:02]} 19. h4 {[%clk 0:02:21]}  d4 {[%clk 0:01:41]} 20. Ne2 {[%clk 0:02:09]}  d3 {[%clk 0:01:39]} 21. Nf4 {[%clk 0:02:08]}  Rd6 {[%clk 0:01:39]} 22. Rxc5 {[%clk 0:02:01]}  d2 {[%clk 0:01:20]} 23. Rc2 {[%clk 0:01:20]}  g6 {[%clk 0:01:06]} 24. Bd4 {[%clk 0:01:19]}  Rxd4 {[%clk 0:00:25]} 25. exd4 {[%clk 0:01:17]}  Qxd4 {[%clk 0:00:26]} 26. Rcxd2 {[%clk 0:01:04]}  Qxd2 {[%clk 0:00:27]} 27. Rxd2 {[%clk 0:01:04]}  Rxd2 {[%clk 0:00:28]} 28. Qa8+ {[%clk 0:00:59]}  Kg7 {[%clk 0:00:24]} 29. Qxa7 {[%clk 0:00:59]}  Rd7 {[%clk 0:00:19]} 30. Qb6 {[%clk 0:00:51]}  Ng4 {[%clk 0:00:16]} 31. Qc6 {[%clk 0:00:44]}  Rd1+ {[%clk 0:00:16]} 32. Kg2 {[%clk 0:00:43]}  Bf6 {[%clk 0:00:16]} 33. Nd5 {[%clk 0:00:41]}  Bd4 {[%clk 0:00:14]} 34. Ne3 {[%clk 0:00:38]}  Bxe3 {[%clk 0:00:12]} 35. fxe3 {[%clk 0:00:39]}  Rd2+ {[%clk 0:00:12]} 36. Kf1 {[%clk 0:00:33]}  Rxa2 {[%clk 0:00:06]} 37. Qc3+ {[%clk 0:00:31]}  Kh7 {[%clk 0:00:06]} 38. e4 {[%clk 0:00:31]}  Ra7 {[%clk 0:00:04]} 39. b4 {[%clk 0:00:30]}  Re7 {[%clk 0:00:04]} 40. b5 {[%clk 0:00:29]}  Rxe4 {[%clk 0:00:04]} 41. b6 {[%clk 0:00:29]}  Ne3+ {[%clk 0:00:04]} 42. Kg1 {[%clk 0:00:25]}  Nd5 {[%clk 0:00:05]} 43. Qc6 {[%clk 0:00:25]}  Re1+ {[%clk 0:00:03]} 44. Kf2 {[%clk 0:00:24]}  Rd1 {[%clk 0:00:03]} 45. b7 {[%clk 0:00:24]}  Rd2+ {[%clk 0:00:04]} 46. Ke1 {[%clk 0:00:24]}  Rb2 {[%clk 0:00:02]} 47. Qxd5 {[%clk 0:00:23]}  Rb1+ {[%clk 0:00:02]} 48. Kd2 {[%clk 0:00:23]}  Rb2+ {[%clk 0:00:03]} 49. Kc3 {[%clk 0:00:23]}  Rb6 {[%clk 0:00:04]} 50. Qxf7+ {[%clk 0:00:22]}  Kh6 {[%clk 0:00:04]} 51. Qc7 {[%clk 0:00:22]}  Rb1 {[%clk 0:00:03]} 52. b8=Q {[%clk 0:00:20]}  Rc1+ {[%clk 0:00:04]} 53. Kd2 {[%clk 0:00:20]}  Rxc7 {[%clk 0:00:05]} 54. Qxc7 {[%clk 0:00:19]}  g5 {[%clk 0:00:05]} 55. Qd6+ {[%clk 0:00:20]}  Kg7 {[%clk 0:00:06]} 56. hxg5 {[%clk 0:00:20]}  h4 {[%clk 0:00:07]} 57. Qf6+ {[%clk 0:00:19]}  Kg8 {[%clk 0:00:07]} 58. g6 {[%clk 0:00:19]}  h3 {[%clk 0:00:08]} 59. Qf7+ {[%clk 0:00:19]}  Kh8 {[%clk 0:00:08]} 60. Qh7# {[%clk 0:00:20]} 1-0


[Site "https://www.chess.com"]

[Event "Titled Tuesday Blitz April 25 Early 2023"]
[White "Nery Junior, Jose Antonio"]
[Black "Bas Mas, Jose Joaquin"]
[WhiteFideId "2104822"]
[BlackFideId "22219064"]
[WhiteElo "2197"]
[BlackElo "2233"]
[Result "0-1"]
[Round "07"]
[TimeControl "180+2"]
[Date "2023.04.25"]
[WhiteClock "0:00:01"]
[BlackClock "0:00:07"]

1. e4 {[%clk 0:02:47]}  Nf6 {[%clk 0:03:00]} 2. e5 {[%clk 0:02:47]}  Nd5 {[%clk 0:03:00]} 3. Nc3 {[%clk 0:02:47]}  Nxc3 {[%clk 0:02:58]} 4. dxc3 {[%clk 0:02:48]}  d6 {[%clk 0:02:57]} 5. Bc4 {[%clk 0:02:48]}  g6 {[%clk 0:02:57]} 6. Nf3 {[%clk 0:02:48]}  Bg7 {[%clk 0:02:57]} 7. exd6 {[%clk 0:02:48]}  cxd6 {[%clk 0:02:57]} 8. O-O {[%clk 0:02:48]}  O-O {[%clk 0:02:57]} 9. h3 {[%clk 0:02:49]}  Nc6 {[%clk 0:02:57]} 10. Re1 {[%clk 0:02:49]}  a6 {[%clk 0:02:49]} 11. Bg5 {[%clk 0:02:46]}  Re8 {[%clk 0:02:48]} 12. Qd5 {[%clk 0:02:30]}  Rf8 {[%clk 0:02:41]} 13. Rad1 {[%clk 0:02:25]}  Qc7 {[%clk 0:02:41]} 14. Qd2 {[%clk 0:02:18]}  Re8 {[%clk 0:02:05]} 15. Re2 {[%clk 0:02:07]}  Na5 {[%clk 0:01:55]} 16. Bd5 {[%clk 0:02:00]}  e6 {[%clk 0:01:54]} 17. Bb3 {[%clk 0:01:56]}  d5 {[%clk 0:01:47]} 18. Bxd5 {[%clk 0:01:47]}  Bd7 {[%clk 0:01:44]} 19. Bxb7 {[%clk 0:01:39]}  Qxb7 {[%clk 0:01:38]} 20. Qxd7 {[%clk 0:01:38]}  Qxb2 {[%clk 0:01:39]} 21. Qc7 {[%clk 0:01:27]}  Qxc3 {[%clk 0:01:34]} 22. Rd7 {[%clk 0:01:15]}  Qxc7 {[%clk 0:01:16]} 23. Rxc7 {[%clk 0:01:16]}  Rec8 {[%clk 0:01:16]} 24. Rd7 {[%clk 0:01:11]}  h6 {[%clk 0:01:14]} 25. Bh4 {[%clk 0:01:08]}  Nc4 {[%clk 0:01:11]} 26. Nd4 {[%clk 0:00:50]}  Rab8 {[%clk 0:01:05]} 27. Nb3 {[%clk 0:00:46]}  a5 {[%clk 0:01:04]} 28. a4 {[%clk 0:00:45]}  Rb4 {[%clk 0:00:58]} 29. Ra7 {[%clk 0:00:27]}  Rxa4 {[%clk 0:00:56]} 30. Bg3 {[%clk 0:00:18]}  Ra2 {[%clk 0:00:53]} 31. Kh2 {[%clk 0:00:11]}  a4 {[%clk 0:00:53]} 32. Na5 {[%clk 0:00:11]}  Nxa5 {[%clk 0:00:43]} 33. Rxa5 {[%clk 0:00:12]}  a3 {[%clk 0:00:44]} 34. Rd2 {[%clk 0:00:06]}  g5 {[%clk 0:00:32]} 35. Ra7 {[%clk 0:00:05]}  Raxc2 {[%clk 0:00:29]} 36. Rxc2 {[%clk 0:00:05]}  Rxc2 {[%clk 0:00:29]} 37. Rxa3 {[%clk 0:00:05]}  Kh7 {[%clk 0:00:28]} 38. Ra7 {[%clk 0:00:05]}  Kg6 {[%clk 0:00:28]} 39. h4 {[%clk 0:00:05]}  g4 {[%clk 0:00:26]} 40. Ra5 {[%clk 0:00:05]}  f5 {[%clk 0:00:14]} 41. Rb5 {[%clk 0:00:05]}  Bf6 {[%clk 0:00:10]} 42. Rb6 {[%clk 0:00:02]}  f4 {[%clk 0:00:07]} 43. Bxf4 {[%clk 0:00:01]}  Rxf2 {[%clk 0:00:07]} 0-1


[Site "https://www.chess.com"]

[Event "Titled Tuesday Blitz April 25 Early 2023"]
[White "Grossboss19"]
[Black "Kopczynski, Michal"]
[BlackFideId "1124200"]
[WhiteElo "2259"]
[BlackElo "2212"]
[Result "1-0"]
[Round "07"]
[TimeControl "180+2"]
[Date "2023.04.25"]
[WhiteClock "0:00:03"]
[BlackClock "0:00:02"]

1. e4 {[%clk 0:03:00]}  c5 {[%clk 0:02:59]} 2. Nf3 {[%clk 0:02:53]}  d6 {[%clk 0:03:00]} 3. d4 {[%clk 0:02:48]}  cxd4 {[%clk 0:03:00]} 4. Nxd4 {[%clk 0:02:48]}  Nf6 {[%clk 0:03:01]} 5. Nd2 {[%clk 0:02:47]}  g6 {[%clk 0:03:01]} 6. c3 {[%clk 0:02:47]}  Bg7 {[%clk 0:03:01]} 7. Bd3 {[%clk 0:02:47]}  O-O {[%clk 0:03:02]} 8. O-O {[%clk 0:02:48]}  Nc6 {[%clk 0:03:02]} 9. Re1 {[%clk 0:02:47]}  e5 {[%clk 0:02:58]} 10. N4f3 {[%clk 0:02:38]}  Ne8 {[%clk 0:02:56]} 11. Bc4 {[%clk 0:02:32]}  Kh8 {[%clk 0:02:53]} 12. Nf1 {[%clk 0:02:28]}  h6 {[%clk 0:02:52]} 13. g3 {[%clk 0:02:10]}  f5 {[%clk 0:02:51]} 14. Nh4 {[%clk 0:02:10]}  Kh7 {[%clk 0:02:46]} 15. exf5 {[%clk 0:02:07]}  gxf5 {[%clk 0:02:44]} 16. Ne3 {[%clk 0:02:06]}  Ne7 {[%clk 0:02:36]} 17. Nd5 {[%clk 0:01:55]}  Nxd5 {[%clk 0:02:30]} 18. Qxd5 {[%clk 0:01:53]}  Bd7 {[%clk 0:02:24]} 19. Qd3 {[%clk 0:01:47]}  e4 {[%clk 0:02:21]} 20. Rxe4 {[%clk 0:01:30]}  Bf6 {[%clk 0:01:49]} 21. Rf4 {[%clk 0:01:17]}  Bg5 {[%clk 0:01:49]} 22. Rxf5 {[%clk 0:01:13]}  Bxf5 {[%clk 0:01:47]} 23. Nxf5 {[%clk 0:01:13]}  Kh8 {[%clk 0:01:45]} 24. f4 {[%clk 0:00:57]}  Bf6 {[%clk 0:01:41]} 25. Nxh6 {[%clk 0:00:55]}  Qe7 {[%clk 0:01:32]} 26. Bd2 {[%clk 0:00:48]}  Qh7 {[%clk 0:01:27]} 27. Nf5 {[%clk 0:00:39]}  Qxf5 {[%clk 0:01:15]} 28. Qxf5 {[%clk 0:00:37]}  Bd4+ {[%clk 0:01:15]} 29. cxd4 {[%clk 0:00:36]}  Rxf5 {[%clk 0:01:16]} 30. Re1 {[%clk 0:00:34]}  d5 {[%clk 0:01:15]} 31. Bd3 {[%clk 0:00:32]}  Rf7 {[%clk 0:01:11]} 32. Re5 {[%clk 0:00:30]}  Rd8 {[%clk 0:01:07]} 33. f5 {[%clk 0:00:24]}  Nf6 {[%clk 0:00:59]} 34. Bg5 {[%clk 0:00:20]}  Rdd7 {[%clk 0:00:55]} 35. h3 {[%clk 0:00:19]}  Ne4 {[%clk 0:00:52]} 36. Bf4 {[%clk 0:00:18]}  Rfe7 {[%clk 0:00:25]} 37. g4 {[%clk 0:00:18]}  Rxe5 {[%clk 0:00:24]} 38. dxe5 {[%clk 0:00:18]}  Kg8 {[%clk 0:00:25]} 39. e6 {[%clk 0:00:19]}  Rd8 {[%clk 0:00:24]} 40. Bb5 {[%clk 0:00:16]}  Kf8 {[%clk 0:00:20]} 41. Bd7 {[%clk 0:00:16]}  Ke7 {[%clk 0:00:19]} 42. h4 {[%clk 0:00:14]}  Rh8 {[%clk 0:00:16]} 43. h5 {[%clk 0:00:12]}  Rg8 {[%clk 0:00:12]} 44. g5 {[%clk 0:00:10]}  Nxg5 {[%clk 0:00:12]} 45. Kf1 {[%clk 0:00:09]}  Ne4 {[%clk 0:00:10]} 46. h6 {[%clk 0:00:09]}  Rf8 {[%clk 0:00:07]} 47. h7 {[%clk 0:00:07]}  Rh8 {[%clk 0:00:06]} 48. Ke2 {[%clk 0:00:04]}  Rxh7 {[%clk 0:00:06]} 49. Ke3 {[%clk 0:00:04]}  Rh5 {[%clk 0:00:05]} 50. Bc8 {[%clk 0:00:03]}  Rxf5 {[%clk 0:00:05]} 51. Bb8 {[%clk 0:00:03]}  b6 {[%clk 0:00:04]} 52. Kd4 {[%clk 0:00:03]}  Rf2 {[%clk 0:00:03]} 53. Kxd5 {[%clk 0:00:03]}  Nf6+ {[%clk 0:00:02]} 54. Ke5 {[%clk 0:00:03]}  Re2+ {[%clk 0:00:02]} 55. Kf5 {[%clk 0:00:04]}  Rf2+ {[%clk 0:00:02]} 56. Ke5 {[%clk 0:00:04]}  Re2+ {[%clk 0:00:03]} 57. Kf5 {[%clk 0:00:04]}  Rxb2 {[%clk 0:00:03]} 58. Bxa7 {[%clk 0:00:04]}  Rf2+ {[%clk 0:00:03]} 59. Ke5 {[%clk 0:00:04]}  Re2+ {[%clk 0:00:04]} 60. Kf5 {[%clk 0:00:05]}  Rb2 {[%clk 0:00:04]} 61. a4 {[%clk 0:00:03]}  Rb4 {[%clk 0:00:04]} 62. Ke5 {[%clk 0:00:02]}  Ng4+ {[%clk 0:00:03]} 63. Kd5 {[%clk 0:00:02]}  Nf6+ {[%clk 0:00:03]} 64. Kc6 {[%clk 0:00:02]}  Rxa4 {[%clk 0:00:02]} 65. Bxb6 {[%clk 0:00:03]}  Re4 {[%clk 0:00:03]} 66. Bc5+ {[%clk 0:00:03]}  Ke8 {[%clk 0:00:03]} 67. Bd7+ {[%clk 0:00:03]}  Kd8 {[%clk 0:00:01]} 68. Bb6+ {[%clk 0:00:03]}  Ke7 {[%clk 0:00:02]} 69. Bc5+ {[%clk 0:00:03]}  Kd8 {[%clk 0:00:02]} 70. e7+ {[%clk 0:00:02]}  Rxe7 {[%clk 0:00:02]} 71. Bb6# {[%clk 0:00:03]} 1-0


[Site "https://www.chess.com"]

[Event "Titled Tuesday Blitz April 25 Early 2023"]
[White "Petrova, Irina"]
[Black "Schut, Han"]
[WhiteFideId "14124122"]
[BlackFideId "1005561"]
[WhiteElo "2084"]
[BlackElo "2024"]
[Result "0-1"]
[Round "07"]
[TimeControl "180+2"]
[Date "2023.04.25"]
[WhiteClock "0:00:06"]
[BlackClock "0:00:07"]

1. e4 {[%clk 0:03:00]}  c5 {[%clk 0:02:59]} 2. Nf3 {[%clk 0:03:00]}  d6 {[%clk 0:02:59]} 3. Bb5+ {[%clk 0:02:59]}  Bd7 {[%clk 0:02:59]} 4. Bxd7+ {[%clk 0:02:59]}  Qxd7 {[%clk 0:03:00]} 5. O-O {[%clk 0:02:59]}  Nc6 {[%clk 0:02:58]} 6. Re1 {[%clk 0:03:00]}  Nf6 {[%clk 0:02:57]} 7. c3 {[%clk 0:03:00]}  e6 {[%clk 0:02:57]} 8. d4 {[%clk 0:03:00]}  cxd4 {[%clk 0:02:57]} 9. cxd4 {[%clk 0:03:01]}  d5 {[%clk 0:02:56]} 10. e5 {[%clk 0:03:02]}  Ne4 {[%clk 0:02:56]} 11. Nbd2 {[%clk 0:03:02]}  Nxd2 {[%clk 0:02:56]} 12. Bxd2 {[%clk 0:03:03]}  Be7 {[%clk 0:02:56]} 13. Rc1 {[%clk 0:03:03]}  O-O {[%clk 0:02:54]} 14. a3 {[%clk 0:03:00]}  Rfc8 {[%clk 0:02:54]} 15. Rc3 {[%clk 0:02:58]}  Qd8 {[%clk 0:02:44]} 16. Rd3 {[%clk 0:02:56]}  Na5 {[%clk 0:02:36]} 17. Bc3 {[%clk 0:02:48]}  Nc4 {[%clk 0:02:27]} 18. h4 {[%clk 0:02:48]}  b5 {[%clk 0:02:14]} 19. h5 {[%clk 0:02:47]}  h6 {[%clk 0:02:09]} 20. Nh2 {[%clk 0:02:47]}  a5 {[%clk 0:02:05]} 21. Qg4 {[%clk 0:02:31]}  b4 {[%clk 0:01:54]} 22. Rg3 {[%clk 0:02:30]}  Bf8 {[%clk 0:01:52]} 23. axb4 {[%clk 0:02:30]}  axb4 {[%clk 0:01:47]} 24. Bxb4 {[%clk 0:02:30]}  Nxb2 {[%clk 0:01:26]} 25. Bxf8 {[%clk 0:02:20]}  Qxf8 {[%clk 0:01:24]} 26. Qf4 {[%clk 0:02:20]}  Kh7 {[%clk 0:01:19]} 27. Ng4 {[%clk 0:02:17]}  Nc4 {[%clk 0:01:16]} 28. Kh2 {[%clk 0:02:12]}  Ra3 {[%clk 0:01:11]} 29. Rxa3 {[%clk 0:01:57]}  Nxa3 {[%clk 0:01:08]} 30. Ra1 {[%clk 0:01:57]}  Ra8 {[%clk 0:00:47]} 31. Qf3 {[%clk 0:01:44]}  Kg8 {[%clk 0:00:37]} 32. Qg3 {[%clk 0:01:41]}  Kh7 {[%clk 0:00:33]} 33. Qd3+ {[%clk 0:01:25]}  Kg8 {[%clk 0:00:29]} 34. Ra2 {[%clk 0:01:17]}  Nc4 {[%clk 0:00:28]} 35. Rxa8 {[%clk 0:01:06]}  Qxa8 {[%clk 0:00:29]} 36. Qg3 {[%clk 0:01:06]}  Kh8 {[%clk 0:00:26]} 37. Qf4 {[%clk 0:01:00]}  Kg8 {[%clk 0:00:25]} 38. f3 {[%clk 0:00:49]}  Qd8 {[%clk 0:00:24]} 39. Kh3 {[%clk 0:00:47]}  Qg5 {[%clk 0:00:20]} 40. Qxg5 {[%clk 0:00:47]}  hxg5 {[%clk 0:00:21]} 41. Nf2 {[%clk 0:00:45]}  Nd2 {[%clk 0:00:21]} 42. Kg4 {[%clk 0:00:35]}  f6 {[%clk 0:00:18]} 43. exf6 {[%clk 0:00:26]}  gxf6 {[%clk 0:00:19]} 44. f4 {[%clk 0:00:26]}  gxf4 {[%clk 0:00:18]} 45. Kxf4 {[%clk 0:00:27]}  Nb3 {[%clk 0:00:17]} 46. Ke3 {[%clk 0:00:27]}  e5 {[%clk 0:00:17]} 47. dxe5 {[%clk 0:00:24]}  fxe5 {[%clk 0:00:18]} 48. Ng4 {[%clk 0:00:24]}  d4+ {[%clk 0:00:09]} 49. Ke4 {[%clk 0:00:23]}  Nc5+ {[%clk 0:00:08]} 50. Kxe5 {[%clk 0:00:22]}  d3 {[%clk 0:00:08]} 51. Ne3 {[%clk 0:00:20]}  d2 {[%clk 0:00:07]} 52. g4 {[%clk 0:00:19]}  Nd3+ {[%clk 0:00:06]} 53. Kf6 {[%clk 0:00:17]}  Nf2 {[%clk 0:00:06]} 54. g5 {[%clk 0:00:16]}  Ng4+ {[%clk 0:00:07]} 55. Kg6 {[%clk 0:00:05]}  Nxe3 {[%clk 0:00:07]} 56. h6 {[%clk 0:00:06]}  d1=Q {[%clk 0:00:05]} 57. h7+ {[%clk 0:00:07]}  Kh8 {[%clk 0:00:06]} 58. Kf7 {[%clk 0:00:07]}  Qd4 {[%clk 0:00:06]} 59. g6 {[%clk 0:00:07]}  Qg7+ {[%clk 0:00:07]} 60. Ke6 {[%clk 0:00:06]}  Qxg6+ {[%clk 0:00:07]} 0-1


[Site "https://www.chess.com"]